bitfinex-derivatives/quotes_ETHF0:USTF0_20250709
["timestamp","ask_amount","ask_price","bid_price","bid_amount"]
[1752100235666,3.44058,2766.1,2765.8,2.3792]
[1752100235864,2.7178,2766.1,2766.0,0.72281]
[1752100236065,3.44058,2766.1,2766.0,0.73641]
[1752100236568,3.43696559,2766.1,2766.0,0.73641]
[1752100239266,0.72283,2766.0,2765.9,0.72281]
[1752100239471,2.31173,2766.0,2765.9,0.72281]
[1752100240171,1.5889,2766.0,2765.9,0.73531]
[1752100240372,1.5889,2766.0,2765.9,0.72281]
[1752100242574,2.31171,2766.0,2765.9,0.72281]
[1752100242975,1.5889,2766.0,2765.9,0.72281]
[1752100243475,2.31171,2766.0,2765.9,0.72281]
[1752100244672,1.5889,2766.0,2765.9,0.72281]
[1752100244873,1.5889,2766.0,2765.9,0.73881]
[1752100245569,1.5889,2766.0,2765.9,2.07291]
[1752100250671,2.31171,2766.0,2765.9,2.07291]
[1752100250875,1.5889,2766.0,2765.9,2.07291]
[1752100253675,2.95690802,2766.0,2765.9,2.07291]
[1752100259085,2.95690802,2766.0,2765.9,0.73881]
[1752100260482,2.95690802,2766.0,2765.9,0.72281]
[1752100260678,2.95690802,2766.0,2765.1,2.73858]
[1752100260879,0.72291,2765.7,2765.6,0.72291]
[1752100261082,2.72931802,2765.7,2765.6,0.72291]
[1752100261381,4.78851802,2765.7,2765.6,0.72291]
[1752100263680,3.67981802,2765.7,2765.6,0.72291]
[1752100266778,0.72295,2765.6,2765.5,0.72292]
[1752100266982,3.67985802,2765.6,2765.5,0.72292]
[1752100269090,6.88765802,2765.6,2765.5,0.72292]
[1752100269679,2.95690802,2765.6,2765.5,0.72292]
[1752100270889,3.67981802,2765.6,2765.5,0.72292]
[1752100272889,3.67981802,2765.6,2765.5,0.73732]
[1752100273089,3.67981802,2765.6,2765.5,0.72292]
[1752100273286,3.67981802,2765.6,2765.5,0.73732]
[1752100273993,1.36800802,2765.6,2765.5,0.73732]
[1752100274295,1.1075,2766.0,2765.9,0.72283]
[1752100274490,3.13906364,2766.0,2765.9,0.72283]
[1752100277694,2.48826364,2766.0,2765.9,0.72283]
[1752100277896,4.13406364,2766.0,2765.9,0.72283]
[1752100278194,4.13406364,2766.0,2765.9,0.73723]
[1752100281401,4.85687364,2766.0,2765.9,0.72283]
[1752100281601,4.13406364,2766.0,2765.9,0.72283]
[1752100281997,4.85687364,2766.0,2765.9,0.72283]
[1752100282195,4.85576378,2766.0,2765.9,0.72283]
[1752100282397,4.13295378,2766.0,2765.9,0.73723]
[1752100282695,4.13295378,2766.0,2765.9,0.72283]
[1752100282896,4.85576378,2766.0,2765.9,0.72283]
[1752100285401,0.72286,2765.8,2765.5,1.80729]
[1752100285600,1.37374,2765.6,2765.5,0.72291]
[1752100285800,2.75339378,2765.6,2765.5,0.72291]
[1752100285999,4.92889378,2765.6,2765.5,0.72291]
[1752100286201,4.92889378,2765.6,2765.4,0.72295]
[1752100286202,0.72299,2765.5,2765.4,0.72295]
[1752100286501,3.74844378,2765.5,2765.4,0.72295]
[1752100287896,2.36879,2765.5,2765.4,0.72295]
[1752100288100,3.7425018,2765.5,2765.4,0.72295]
[1752100288503,6.9503018,2765.5,2765.4,0.72295]
[1752100291402,0.72299,2765.4,2765.3,0.72297]
[1752100291706,3.7425018,2765.4,2765.3,0.72297]
[1752100292304,0.72307,2765.1,2765.0,0.72303]
[1752100292609,0.72312,2764.9,2764.8,0.72308]
[1752100293303,0.72312,2764.9,2764.8,0.73748]
[1752100295309,2.1539,2765.0,2764.9,0.7231]
[1752100295608,3.2078,2765.2,2765.1,0.72304]
[1752100295807,3.8586,2765.2,2765.1,0.72304]
[1752100296009,0.6508,2765.2,2765.1,0.72304]
[1752100296210,2.7505276,2765.2,2765.1,0.72304]
[1752100296406,2.75053225,2765.2,2765.1,0.72304]
[1752100296906,3.74553225,2765.2,2765.1,0.72304]
[1752100297207,2.36883,2765.2,2765.1,0.72304]
[1752100297407,3.74545913,2765.2,2765.1,0.72304]
[1752100297603,3.02242913,2765.2,2765.1,0.73744]
[1752100297906,1.37662913,2765.2,2765.1,0.72304]
[1752100298110,1.37662913,2765.2,2765.1,0.73744]
[1752100298607,3.2078,2765.5,2765.4,0.72297]
[1752100298804,4.58496855,2765.5,2765.4,0.72297]
[1752100299000,4.58496855,2765.5,2765.4,0.73737]
[1752100299909,4.58496855,2765.5,2765.4,0.72297]
[1752100300117,4.58496855,2765.5,2765.4,0.73777]
[1752100300310,0.89067419,2765.5,2765.4,0.73777]
[1752100301515,4.1241,2765.8,2765.7,0.72289]
[1752100301713,1.5423,2765.8,2765.7,0.72289]
[1752100302416,1.5423,2765.8,2765.7,0.73769]
[1752100302717,0.626,2765.8,2765.7,0.73769]
[1752100306412,0.9163,2766.0,2765.7,0.0148]
[1752100306614,0.9163,2766.0,2765.9,0.72283]
[1752100306917,1.5423,2766.0,2765.9,0.72283]
[1752100307315,1.5423,2766.0,2765.9,0.73733]
[1752100309118,0.626,2766.0,2765.9,0.73733]
[1752100309517,0.626,2766.0,2765.9,1.93193]
[1752100311115,6.44697164,2766.7,2766.3,1.8068]
[1752100311414,3.2078,2766.7,2766.6,0.72265]
[1752100311917,4.15547164,2766.9,2766.8,0.7226]
[1752100312220,4.15547164,2766.9,2766.6,0.72265]
[1752100312221,2.36480164,2767.0,2766.9,0.72257]
[1752100312417,0.626,2767.0,2766.9,0.72257]
[1752100312917,1.36771329,2767.0,2766.9,0.72257]
[1752100314416,1.99371329,2767.0,2766.9,0.72257]
[1752100314720,1.99371329,2767.0,2766.9,0.73707]
[1752100315421,1.36771329,2767.0,2766.9,0.73707]
[1752100315722,0.58567329,2767.0,2766.9,0.73707]
[1752100316421,1.21167329,2767.0,2766.9,0.73707]
[1752100316723,0.58567329,2767.0,2766.9,0.73707]
[1752100316922,1.21167329,2767.0,2766.9,0.73707]
[1752100317122,0.626,2767.0,2766.9,0.73707]
[1752100320127,3.2078,2767.4,2767.3,0.72247]
[1752100320326,3.8338,2767.4,2767.3,0.72247]
[1752100320825,4.7501,2767.4,2767.3,0.72247]
[1752100321417,1.5423,2767.4,2767.3,0.73697]
[1752100321722,3.2078,2767.9,2767.8,0.72234]
[1752100322121,6.0583,2767.9,2767.8,0.72234]
[1752100323229,6.0583,2767.9,2767.2,1.80624]
[1752100323428,3.2078,2767.6,2767.5,0.72242]
[1752100323726,4.7501,2767.6,2767.5,0.72242]
[1752100324025,4.7501,2767.6,2767.5,0.73692]
[1752100325030,3.8338,2767.6,2767.5,0.73692]
[1752100325233,4.7501,2767.6,2767.5,0.73692]
[1752100325727,3.2078,2767.6,2767.5,0.73692]
[1752100325930,0.9163,2767.8,2767.5,0.0145]
[1752100326231,0.626,2767.6,2767.5,0.73692]
[1752100326424,0.9163,2768.0,2767.7,1.80587]
[1752100326625,0.626,2767.8,2767.7,0.72236]
[1752100327024,1.5423,2767.8,2767.7,0.73686]
[1752100327333,1.5423,2767.8,2767.7,0.72236]
[1752100327530,1.5423,2767.8,2767.7,0.73686]
[1752100329130,1.5423,2767.8,2767.7,0.72236]
[1752100329330,5.47246,2767.8,2767.7,0.72236]
[1752100329531,4.7501,2767.8,2767.7,0.72236]
[1752100329731,5.47244,2767.8,2767.7,0.72236]
[1752100330029,5.9738,2767.8,2767.7,0.72236]
[1752100330334,2.766,2767.8,2767.7,0.72236]
[1752100330838,5.9738,2767.8,2767.7,0.72236]
[1752100331439,6.69614,2767.8,2767.7,0.72236]
[1752100332132,11.69614,2767.8,2767.7,0.72236]
[1752100332336,10.9738,2767.8,2767.7,0.72236]
[1752100332538,5.9738,2767.8,2767.7,0.72236]
[1752100333429,4.7501,2767.8,2767.7,0.72236]
[1752100333634,4.7501,2767.8,2767.7,0.73756]
[1752100336040,1.5423,2767.8,2767.7,0.73756]
[1752100336540,0.626,2767.8,2767.7,0.73756]
[1752100337642,1.5802,2767.8,2767.7,0.73756]
[1752100337940,1.5802,2767.8,2767.7,0.72236]
[1752100338437,2.686,2767.8,2767.7,0.72236]
[1752100339040,3.40834,2767.8,2767.7,0.72236]
[1752100339437,2.686,2767.8,2767.7,0.72236]
[1752100339643,5.8938,2767.8,2767.7,0.72236]
[1752100339845,0.72246,2767.5,2767.4,0.72242]
[1752100340044,2.34276,2767.5,2767.4,0.72242]
[1752100341143,1.6203,2767.5,2767.4,0.72242]
[1752100342351,5.55052,2767.5,2767.4,0.72242]
[1752100342555,7.17233295,2767.5,2766.9,1.80644]
[1752100342847,3.2078,2767.2,2767.1,0.72248]
[1752100343153,4.8281,2767.2,2767.1,0.72248]
[1752100343354,6.0277,2767.2,2767.1,0.72248]
[1752100344153,6.7502,2767.2,2767.1,0.72248]
[1752100344651,3.5424,2767.2,2767.1,0.72248]
[1752100345049,2.8199,2767.2,2767.1,0.72248]
[1752100345249,3.5424,2767.2,2767.1,0.72248]
[1752100345449,4.87119526,2767.2,2767.1,0.72248]
[1752100345851,3.5424,2767.2,2767.1,0.72248]
[1752100346053,4.87119536,2767.2,2767.1,0.72248]
[1752100346252,4.8606327,2767.2,2767.1,0.72248]
[1752100346453,4.1381327,2767.2,2767.1,0.72248]
[1752100347345,4.8606327,2767.2,2767.1,0.72248]
[1752100347549,4.1381327,2767.2,2767.1,0.72248]
[1752100347749,4.8606327,2767.2,2767.1,0.72248]
[1752100347957,4.1381327,2767.2,2767.1,0.72248]
[1752100348254,4.8606327,2767.2,2767.1,0.72248]
[1752100348555,4.1381327,2767.2,2767.1,0.72248]
[1752100349954,4.8606327,2767.2,2767.1,0.72248]
[1752100350955,4.1381327,2767.2,2767.1,0.72248]
[1752100352052,4.1381327,2767.2,2767.1,1.74911295]
[1752100352252,4.1381327,2767.2,2767.1,1.73391295]
[1752100352754,4.1381327,2767.2,2767.1,1.74911295]
[1752100354458,4.1381327,2767.2,2767.1,0.73768]
[1752100358264,4.1381327,2767.2,2767.1,0.72248]
[1752100359564,2.9205327,2767.2,2767.1,1.73391295]
[1752100359759,2.9205327,2767.2,2767.1,2.98671295]
[1752100359967,2.9205327,2767.2,2767.1,3.00271295]
[1752100360266,2.9205327,2767.2,2767.1,1.99128]
[1752100361065,2.1055,2767.6,2767.5,0.72242]
[1752100361266,2.7432,2767.6,2767.5,0.72242]
[1752100361459,1.807,2767.6,2767.5,0.72242]
[1752100361761,2.7432,2767.6,2767.5,0.72242]
[1752100366268,2.7432,2767.6,2767.4,0.72243]
[1752100366464,3.93026,2767.5,2767.4,0.72243]
[1752100366665,5.50416,2767.5,2767.4,0.72243]
[1752100367769,4.7817,2767.5,2767.4,0.72243]
[1752100368870,5.50412,2767.5,2767.4,0.72243]
[1752100371169,5.50412,2767.5,2767.3,0.72245]
[1752100371170,0.72249,2767.4,2767.3,0.72245]
[1752100371371,1.36019,2767.4,2767.3,0.72245]
[1752100371567,2.29639,2767.4,2767.3,0.72245]
[1752100372370,0.72252,2767.2,2767.1,0.72248]
[1752100372565,5.79313295,2767.2,2766.8,3.21147869]
[1752100372767,0.7226,2766.8,2766.7,3.21147869]
[1752100372965,0.7226,2766.8,2766.3,3.21147869]
[1752100372966,1.01143295,2766.7,2766.3,3.21147869]
[1752100373166,1.3604,2766.4,2766.3,3.21147869]
[1752100373370,2.2966,2766.4,2766.3,3.21147869]
[1752100373570,3.4957,2766.4,2766.3,3.21147869]
[1752100373969,2.773,2766.4,2766.3,3.93420869]
[1752100375066,2.773,2766.4,2766.3,3.94860869]
[1752100375364,3.93049,2766.5,2766.4,0.72271]
[1752100375569,4.56819,2766.5,2766.4,0.72271]
[1752100375771,5.50439,2766.5,2766.4,0.73711]
[1752100376371,6.09130163,2766.5,2766.4,0.73711]
[1752100376672,5.15510163,2766.5,2766.4,1.74854295]
[1752100376870,5.15510163,2766.5,2766.4,2.85854295]
[1752100378475,3.2078,2766.5,2766.4,2.85854295]
[1752100379272,3.8455,2766.5,2766.4,2.85854295]
[1752100380476,3.8455,2766.5,2766.4,1.84711]
[1752100380674,4.7817,2766.5,2766.4,1.84711]
[1752100381177,5.50438,2766.5,2766.4,1.84711]
[1752100382179,4.7817,2766.5,2766.4,1.84711]
[1752100385084,5.50438,2766.5,2766.4,1.84711]
[1752100386982,0.72274,2766.4,2766.3,0.7227]
[1752100387186,2.29664,2766.4,2766.3,0.7227]
[1752100388080,2.29664,2766.4,2766.3,0.7371]
[1752100389378,0.6377,2766.4,2766.3,0.7371]
[1752100389583,3.93048,2766.5,2766.4,0.7227]
[1752100389787,4.54758,2766.5,2766.4,0.7227]
[1752100390085,4.54758,2766.5,2766.4,0.7372]
[1752100390286,3.8249,2766.5,2766.4,0.7372]
[1752100390487,4.54758,2766.5,2766.4,0.7372]
[1752100390686,3.8249,2766.5,2766.4,0.7372]
[1752100391087,4.54758,2766.5,2766.4,0.7372]
[1752100391686,5.54728,2766.5,2766.4,0.7372]
[1752100393591,5.54728,2766.5,2766.4,0.7227]
[1752100396891,4.8246,2766.5,2766.4,0.7227]
[1752100397694,4.8246,2766.5,2766.4,0.7372]
[1752100399097,3.8249,2766.5,2766.4,0.7372]
[1752100399297,3.8249,2766.5,2766.4,1.74863295]
[1752100399695,3.8249,2766.5,2766.4,2.86773295]
[1752100400200,5.54728,2766.5,2766.4,1.8563]
[1752100400398,6.85959825,2766.5,2766.4,1.8563]
[1752100402197,2.92911825,2766.5,2766.4,1.8563]
[1752100402398,3.65179825,2766.5,2766.4,1.8563]
[1752100402997,2.92911825,2766.5,2766.4,1.8563]
[1752100403198,3.65179825,2766.5,2766.4,1.8563]
[1752100407001,2.92911825,2766.5,2766.4,1.8563]
[1752100408405,1.31231825,2766.5,2766.4,2.86773295]
[1752100408607,1.31231825,2766.5,2766.4,7.87643295]
[1752100409607,0.72253,2767.1,2767.0,0.72255]
[1752100409608,1.72223,2767.1,2767.0,0.72255]
[1752100409809,3.65551703,2767.1,2767.0,0.73705]
[1752100410406,3.65551703,2767.1,2767.0,0.72255]
[1752100411800,3.65551703,2767.1,2767.0,0.73705]
[1752100414204,3.65337131,2767.1,2767.0,0.73705]
[1752100415313,2.93084131,2767.1,2767.0,0.73705]
[1752100416812,3.04776,2767.5,2767.0,0.73705]
[1752100416813,3.94805173,2767.7,2767.3,1.80616]
[1752100417011,3.2078,2767.9,2767.3,0.72247]
[1752100417012,0.6171,2767.4,2767.3,0.72247]
[1752100417207,0.6171,2767.4,2767.3,3.16997]
[1752100417411,2.1265,2767.6,2767.5,0.72242]
[1752100417709,4.189,2767.9,2767.5,0.0145]
[1752100417908,3.2078,2767.9,2767.8,0.72234]
[1752100418113,4.54721,2767.9,2767.8,0.72234]
[1752100418508,5.52841,2767.9,2767.8,0.72234]
[1752100419006,3.2078,2768.5,2767.8,29.08673295]
[1752100419212,3.2078,2768.5,2768.4,1.73361295]
[1752100419406,3.8372,2768.5,2768.4,1.73361295]
[1752100419604,3.8372,2768.5,2768.4,1.74671295]
[1752100419805,7.44489468,2769.2,2769.0,0.72201]
[1752100420112,0.9812,2769.0,2768.9,0.72205]
[1752100420311,1.6106,2769.0,2768.9,0.72205]
[1752100420610,1.6106,2769.0,2768.9,0.73515]
[1752100421411,0.9812,2769.4,2769.3,0.72195]
[1752100421610,1.6106,2769.4,2769.3,0.72195]
[1752100421815,3.2078,2769.8,2769.7,0.72184]
[1752100422015,3.8372,2769.8,2769.7,0.72184]
[1752100422517,0.6294,2769.8,2769.7,1.20661553]
[1752100423015,0.6294,2769.8,2769.7,2.51411553]
[1752100423315,0.9812,2770.3,2770.2,0.72171]
[1752100423514,1.6106,2770.3,2770.2,0.72171]
[1752100424412,6.6106,2770.3,2769.5,3.2078]
[1752100424612,1.73330295,2769.6,2769.5,0.72188]
[1752100424811,1.73330295,2769.6,2769.5,1.20508753]
[1752100425109,3.34390295,2769.6,2769.5,1.20508266]
[1752100425314,1.6106,2769.6,2769.5,1.20508266]
[1752100425514,0.9812,2769.9,2769.8,0.7218]
[1752100425715,1.6106,2769.9,2769.8,0.7218]
[1752100426114,1.6106,2769.9,2769.5,3.2078]
[1752100426314,1.01143295,2769.6,2769.3,0.72193]
[1752100426515,1.70312,2769.5,2769.4,0.48244059]
[1752100426716,2.33252,2769.5,2769.4,1.20436059]
[1752100427112,2.33252,2769.5,2769.4,1.2042118]
[1752100428619,1.6106,2769.5,2769.4,0.72192]
[1752100428814,1.6106,2769.5,2769.4,0.73502]
[1752100429011,0.6294,2769.5,2769.4,0.73502]
[1752100429516,0.72184,2769.8,2769.7,0.72184]
[1752100429716,0.72185,2769.7,2769.6,0.72185]
[1752100429917,0.72185,2769.7,2769.6,0.73495]
[1752100431313,0.6294,2769.8,2769.7,0.72184]
[1752100431314,1.35124,2769.8,2769.7,0.72184]
[1752100432917,0.72184,2769.7,2769.6,0.72185]
[1752100434126,1.61330151,2769.8,2769.6,0.0104]
[1752100434326,0.72187,2769.7,2769.6,0.72184]
[1752100434824,2.33247,2769.7,2769.6,0.73224]
[1752100438428,0.6294,2769.7,2769.6,1.23052874]
[1752100439116,1.35124,2769.7,2769.6,1.23052874]
[1752100440129,0.6294,2769.7,2769.6,1.23052874]
[1752100440426,1.6106,2769.7,2769.6,1.23052874]
[1752100440621,2.33244,2769.7,2769.6,1.23052874]
[1752100440822,0.6294,2769.7,2769.6,1.23052874]
[1752100442027,1.35124,2769.7,2769.6,1.23052874]
[1752100442424,0.72452151,2769.8,2769.7,0.72184]
[1752100442724,1.35392151,2769.8,2769.7,1.22012874]
[1752100444426,0.00270151,2769.8,2769.7,1.23052874]
[1752100444619,0.00270151,2769.8,2769.7,2.24196169]
[1752100445130,0.00270151,2769.8,2769.7,3.56236169]
[1752100445826,0.00270151,2769.8,2769.7,3.55196169]
[1752100446025,0.00270151,2769.8,2769.7,3.56236169]
[1752100446420,0.63210151,2769.8,2769.7,2.55092874]
[1752100446620,0.63210151,2769.8,2769.7,1.23052874]
[1752100447526,0.00270151,2769.8,2769.7,3.45596169]
[1752100447832,0.00270151,2769.8,2769.7,28.27296169]
[1752100448227,0.00270151,2769.8,2769.7,28.27196169]
[1752100449132,0.9812,2770.2,2769.9,1.80449]
[1752100449428,0.6294,2770.0,2769.9,0.72179]
[1752100449628,0.6294,2770.0,2769.9,2.47592592]
[1752100450431,1.9017918,2770.0,2769.9,2.47592592]
[1752100451625,2.8745918,2770.0,2769.9,27.28992592]
[1752100451829,2.8745918,2770.0,2769.9,26.03964315]
[1752100452029,2.8745918,2770.0,2769.9,26.5520504]
[1752100454029,2.8745918,2770.0,2769.9,26.5500504]
[1752100455336,2.8745918,2770.0,2769.9,1.7380504]
[1752100455634,2.8745918,2770.0,2769.9,26.5490504]
[1752100456436,2.8745918,2770.0,2769.9,1.7380504]
[1752100456635,3.5963618,2770.0,2769.9,1.00446094]
[1752100456934,0.72188,2769.6,2769.5,0.72188]
[1752100457133,2.38861295,2769.6,2769.5,0.72188]
[1752100457334,3.36141295,2769.6,2769.5,0.72188]
[1752100457933,4.63536986,2769.6,2769.5,0.72188]
[1752100460531,0.72194,2769.4,2769.3,0.72191]
[1752100460741,0.722,2769.1,2769.0,3.23549919]
[1752100460935,2.63953295,2769.1,2768.8,3.95756919]
[1752100461127,2.1076,2769.0,2768.9,0.72205]
[1752100461432,3.48493,2769.0,2768.9,0.72205]
[1752100462233,0.72208,2768.8,2768.7,3.23549919]
[1752100462528,2.35018,2768.8,2768.7,29.37198919]
[1752100462734,2.35018,2768.8,2768.7,28.76658919]
[1752100463133,2.35018,2768.8,2768.7,25.53109]
[1752100463435,2.35018,2768.8,2768.5,3.2078]
[1752100463436,0.72213,2768.6,2768.5,28.73894]
[1752100463630,2.35023,2768.6,2768.5,7.15044887]
[1752100463833,2.35023,2768.6,2768.5,3.92994]
[1752100464438,0.6553,2768.6,2768.5,5.54677295]
[1752100464639,1.37743,2768.6,2768.5,5.54677295]
[1752100464835,1.37743,2768.6,2768.5,4.53534]
[1752100466334,1.69485,2768.9,2768.8,0.72208]
[1752100466639,1.37735,2768.9,2768.8,0.72208]
[1752100466837,2.35015,2768.9,2768.8,1.32748]
[1752100467640,0.6553,2768.9,2768.8,1.32748]
[1752100467934,3.2078,2769.1,2769.0,0.72203]
[1752100468134,3.8631,2769.1,2769.0,1.32743]
[1752100468640,0.72207,2768.9,2768.8,24.811]
[1752100468840,2.35017,2768.9,2768.8,25.53305]
[1752100474043,2.35017,2768.9,2768.8,26.13845]
[1752100474243,2.35017,2768.9,2768.8,25.53305]
[1752100475546,2.35017,2768.9,2768.8,25.53205]
[1752100477245,2.35017,2768.9,2768.8,26.13745]
[1752100477443,2.35017,2768.9,2768.8,25.53205]
[1752100477644,2.35017,2768.9,2768.8,26.13745]
[1752100479244,2.35017,2768.9,2768.8,26.13645]
[1752100479445,2.35017,2768.9,2768.8,1.32745]
[1752100479645,2.35017,2768.9,2768.8,26.13645]
[1752100480551,2.35017,2768.9,2768.8,1.32745]
[1752100480751,2.35017,2768.9,2768.8,26.13645]
[1752100484657,1.84765,2769.0,2768.9,0.72205]
[1752100484856,2.81455,2769.0,2768.9,0.72205]
[1752100485151,3.2078,2769.1,2769.0,0.72203]
[1752100485354,3.2078,2769.1,2769.0,26.14473]
[1752100485651,3.2078,2769.5,2769.2,1.80492]
[1752100485855,0.72189,2769.6,2769.3,26.54038295]
[1752100486054,0.72189,2769.6,2769.5,0.7219]
[1752100486254,0.72189,2769.6,2769.5,26.1446]
[1752100486556,1.27391598,2769.6,2769.5,27.1977]
[1752100486745,2.66458598,2769.6,2769.5,27.1977]
[1752100487356,1.94271598,2769.6,2769.5,27.1977]
[1752100487552,0.6688,2769.6,2769.5,27.1977]
[1752100487753,0.72181,2769.9,2769.5,30.28575295]
[1752100487954,1.27482,2769.8,2769.7,1.73327295]
[1752100488258,1.99664,2769.8,2769.7,27.15397295]
[1752100488452,2.66544,2769.8,2769.7,27.15397295]
[1752100489357,2.66544,2769.8,2769.7,26.14254]
[1752100490061,0.72182,2769.9,2769.8,0.7218]
[1752100490259,1.99482845,2769.9,2769.8,1.3375]
[1752100490459,1.27300845,2769.9,2769.8,1.3375]
[1752100490654,1.27300845,2769.9,2769.8,2.6704]
[1752100491054,1.94180845,2769.9,2769.8,2.6704]
[1752100491457,1.9413882,2769.9,2769.8,2.6704]
[1752100491759,0.6688,2769.9,2769.8,27.4724]
[1752100491959,1.94137608,2769.9,2769.8,27.4724]
[1752100492260,0.6688,2769.9,2769.8,27.4724]
[1752100493556,1.1286,2770.3,2770.1,0.72174]
[1752100493856,1.1286,2770.3,2770.1,26.13944]
[1752100493857,1.94063514,2770.2,2770.1,26.13944]
[1752100494650,2.66234514,2770.2,2770.1,26.13944]
[1752100495454,0.72179,2770.0,2769.9,0.72176]
[1752100495661,3.36893295,2770.0,2769.9,0.72177]
[1752100495857,4.63804032,2770.0,2769.9,0.72177]
[1752100496158,5.01197,2770.4,2769.9,3.43158295]
[1752100496359,1.99317857,2770.3,2770.2,0.72169]
[1752100496554,2.66197857,2770.3,2770.2,26.13639]
[1752100496754,2.66197857,2770.3,2770.2,1.33739]
[1752100496956,2.66197857,2770.3,2770.2,26.13639]
[1752100497449,2.90714857,2770.3,2770.0,1.1406]
[1752100497654,2.96008857,2770.2,2770.1,25.52073]
[1752100497858,3.62888857,2770.2,2770.1,25.52073]
[1752100498261,3.62888857,2770.2,2770.0,1.1406]
[1752100498559,0.72182,2769.9,2769.8,0.72178]
[1752100498762,0.72182,2769.9,2769.8,25.51878]
[1752100499055,2.35752,2769.9,2769.8,26.13448]
[1752100499254,0.72184,2769.8,2769.7,0.72182]
[1752100499455,0.72195,2769.4,2769.3,0.72192]
[1752100499659,1.6357,2769.4,2769.0,1.3266]
[1752100499856,1.6357,2769.4,2768.9,3.92983]
[1752100499857,0.72203,2769.0,2768.9,3.92983]
[1752100500055,0.72203,2769.0,2768.9,3.8235]
[1752100500259,0.72203,2769.0,2768.9,3.2078]
[1752100500460,0.72205,2768.9,2768.8,1.1379]
[1752100500756,0.72205,2768.9,2768.8,27.27268]
[1752100500963,1.136,2769.2,2768.8,26.5506]
[1752100501262,0.72205,2769.0,2768.9,2.01494]
[1752100501663,0.72205,2768.9,2768.8,0.72206]
[1752100501863,0.72205,2768.9,2768.8,1.33776]
[1752100502066,0.72205,2768.9,2768.8,0.6157]
[1752100502664,0.72205,2768.9,2768.8,25.4117]
[1752100504365,0.72205,2768.9,2768.8,25.4137]
[1752100504865,0.72205,2768.9,2768.8,24.798]
[1752100505059,2.35775,2768.9,2768.8,24.798]
[1752100505265,8.69320834,2768.9,2768.1,6.42830887]
[1752100505466,5.01307,2768.7,2768.1,0.72225]
[1752100505660,0.72221,2768.3,2768.2,24.798]
[1752100505868,0.72224,2768.2,2768.1,0.72225]
[1752100506165,1.39104,2768.2,2768.1,26.13595]
[1752100506462,1.39104,2768.2,2768.1,25.52025]
[1752100506664,2.35794,2768.2,2768.1,0.6157]
[1752100506866,0.72231,2767.9,2767.8,3.93012]
[1752100507061,1.39111,2767.9,2767.8,29.34582]
[1752100508667,1.39111,2767.9,2767.8,26.13802]
[1752100509167,1.39111,2767.9,2767.8,1.33804]
[1752100509368,1.39111,2767.9,2767.8,26.13004]
[1752100509968,1.39111,2767.9,2767.8,25.52534]
[1752100510163,1.39111,2767.9,2767.8,26.13004]
[1752100510969,0.72231,2767.9,2767.8,26.13004]
[1752100511264,1.34641,2767.9,2767.8,27.45914]
[1752100511460,1.34641,2767.9,2767.8,24.803]
[1752100511666,2.33581,2767.9,2767.8,24.803]
[1752100512871,0.72234,2767.8,2767.7,0.72235]
[1752100513072,2.33584,2767.8,2767.7,26.13205]
[1752100513271,2.33584,2767.8,2767.7,25.4097]
[1752100513783,2.33584,2767.8,2767.7,0.6047]
[1752100513972,2.33584,2767.8,2767.7,25.4097]
[1752100514173,1.6135,2767.8,2767.3,2.3896]
[1752100514471,0.72242,2767.6,2767.5,0.72239]
[1752100514669,1.34652,2767.6,2767.5,0.72239]
[1752100514862,1.34652,2767.6,2767.5,1.32709]
[1752100515067,1.34652,2767.6,2767.5,0.72239]
[1752100515261,2.33592,2767.6,2767.5,26.13409]
[1752100516072,2.33592,2767.6,2767.5,1.32709]
[1752100516272,2.33592,2767.6,2767.5,26.13409]
[1752100516469,1.71173,2767.9,2767.8,0.72234]
[1752100516663,1.34643,2767.9,2767.8,1.32704]
[1752100517174,1.34643,2767.9,2767.8,0.72234]
[1752100517372,1.34643,2767.9,2767.8,1.32704]
[1752100518371,0.72231,2767.9,2767.8,1.32704]
[1752100518771,3.93011,2768.0,2767.9,0.72231]
[1752100519073,3.93011,2768.0,2767.9,2.59801]
[1752100519576,4.55421,2768.0,2767.9,2.59801]
[1752100519868,3.8319,2768.0,2767.9,2.59801]
[1752100520072,0.6241,2768.0,2767.9,2.59801]
[1752100520468,1.34639,2768.0,2767.9,2.59801]
[1752100520873,3.2078,2768.3,2768.2,0.72223]
[1752100521076,3.92993,2768.7,2768.6,0.7221]
[1752100521275,1.34623,2768.7,2768.6,0.7221]
[1752100521674,0.7221,2768.8,2768.7,0.72208]
[1752100521874,1.3462,2768.8,2768.7,0.72208]
[1752100522372,0.6241,2768.8,2768.7,0.72208]
[1752100522573,1.34618,2768.8,2768.7,0.72208]
[1752100524370,3.2078,2769.0,2768.8,0.72205]
[1752100524576,1.34617,2768.9,2768.8,0.72205]
[1752100525075,1.34617,2768.9,2768.7,0.6047]
[1752100525076,3.2078,2769.0,2768.9,0.72205]
[1752100525271,3.8319,2769.0,2768.9,0.72205]
[1752100525473,0.6241,2769.0,2768.9,0.72205]
[1752100525674,0.6241,2769.0,2768.9,1.96325]
[1752100526074,0.6241,2769.0,2768.9,2.56795]
[1752100527970,1.34613,2769.0,2768.9,0.72205]
[1752100528169,2.33553,2769.0,2768.9,1.32675]
[1752100528368,1.6135,2769.0,2768.9,1.32675]
[1752100528573,1.6135,2769.0,2768.9,0.72205]
[1752100528768,1.6135,2769.0,2768.9,1.32675]
[1752100529177,0.6241,2769.0,2768.9,1.32675]
[1752100529676,0.6241,2769.0,2768.9,2.53055]
[1752100530477,1.34613,2769.0,2768.9,2.53055]
[1752100530678,2.33553,2769.0,2768.9,1.32675]
[1752100535079,9.8213,2769.0,2768.3,3.2078]
[1752100535276,0.72218,2768.5,2768.4,0.72216]
[1752100535581,2.33568,2768.5,2768.4,1.32686]